[Event "Titled Tuesday Blitz December 27 Late 2022"]
[White "Fernandez, Maria Florencia"]
[Black "Kavutskiy, Konstantin"]
[WhiteFideId "116459"]
[BlackFideId "2026384"]
[WhiteElo "2129"]
[BlackElo "2414"]
[Result "0-1"]
[Round "01"]
[TimeControl "180+2"]
[Date "2022.12.27"]
[WhiteClock "0:00:16"]
[BlackClock "0:01:18"]

1. d4 {[%clk 0:02:59]}  Nf6 {[%clk 0:02:59]} 2. c4 {[%clk 0:02:57]}  g6 {[%clk 0:02:59]} 3. Nc3 {[%clk 0:02:57]}  Bg7 {[%clk 0:02:59]} 4. e4 {[%clk 0:02:57]}  d6 {[%clk 0:02:59]} 5. Be2 {[%clk 0:02:57]}  O-O {[%clk 0:02:59]} 6. Be3 {[%clk 0:02:57]}  Na6 {[%clk 0:02:50]} 7. g4 {[%clk 0:02:53]}  c5 {[%clk 0:02:47]} 8. d5 {[%clk 0:02:46]}  e6 {[%clk 0:02:44]} 9. h4 {[%clk 0:02:38]}  exd5 {[%clk 0:02:42]} 10. cxd5 {[%clk 0:02:39]}  Re8 {[%clk 0:02:39]} 11. f3 {[%clk 0:02:30]}  h5 {[%clk 0:02:38]} 12. g5 {[%clk 0:02:25]}  Nd7 {[%clk 0:02:38]} 13. Qd2 {[%clk 0:02:25]}  Ne5 {[%clk 0:02:34]} 14. O-O-O {[%clk 0:02:22]}  Bd7 {[%clk 0:02:32]} 15. Nh3 {[%clk 0:02:14]}  b5 {[%clk 0:02:30]} 16. Nxb5 {[%clk 0:02:05]}  Qb6 {[%clk 0:02:16]} 17. Nc3 {[%clk 0:01:59]}  Rab8 {[%clk 0:02:14]} 18. Nf2 {[%clk 0:01:52]}  Nc7 {[%clk 0:02:02]} 19. f4 {[%clk 0:01:36]}  Ng4 {[%clk 0:02:01]} 20. Nxg4 {[%clk 0:01:35]}  Bxg4 {[%clk 0:01:56]} 21. Bxg4 {[%clk 0:01:34]}  hxg4 {[%clk 0:01:57]} 22. h5 {[%clk 0:01:24]}  Nb5 {[%clk 0:01:55]} 23. Nxb5 {[%clk 0:01:04]}  Qxb5 {[%clk 0:01:56]} 24. e5 {[%clk 0:00:59]}  dxe5 {[%clk 0:01:52]} 25. h6 {[%clk 0:00:52]}  exf4 {[%clk 0:01:36]} 26. hxg7 {[%clk 0:00:46]}  Qc4+ {[%clk 0:01:29]} 27. Qc3 {[%clk 0:00:30]}  Qxc3+ {[%clk 0:01:25]} 28. bxc3 {[%clk 0:00:30]}  fxe3 {[%clk 0:01:24]} 29. Rh8+ {[%clk 0:00:21]}  Kxg7 {[%clk 0:01:24]} 30. Rxe8 {[%clk 0:00:22]}  Rxe8 {[%clk 0:01:24]} 31. d6 {[%clk 0:00:23]}  Rd8 {[%clk 0:01:21]} 32. Rd3 {[%clk 0:00:19]}  e2 {[%clk 0:01:20]} 33. Kd2 {[%clk 0:00:18]}  f5 {[%clk 0:01:15]} 34. gxf6+ {[%clk 0:00:14]}  Kxf6 {[%clk 0:01:16]} 35. Kxe2 {[%clk 0:00:15]}  Ke6 {[%clk 0:01:15]} 36. Ke3 {[%clk 0:00:14]}  Rxd6 {[%clk 0:01:14]} 37. Rxd6+ {[%clk 0:00:12]}  Kxd6 {[%clk 0:01:15]} 38. Kf4 {[%clk 0:00:13]}  Kd5 {[%clk 0:01:15]} 39. Kxg4 {[%clk 0:00:13]}  Kc4 {[%clk 0:01:16]} 40. Kg5 {[%clk 0:00:13]}  Kxc3 {[%clk 0:01:17]} 41. Kxg6 {[%clk 0:00:14]}  Kb2 {[%clk 0:01:17]} 42. Kf5 {[%clk 0:00:15]}  c4 {[%clk 0:01:17]} 43. Ke4 {[%clk 0:00:16]}  c3 {[%clk 0:01:18]} 44. a3 {[%clk 0:00:16]}  c2 {[%clk 0:01:18]} 0-1


[Site "https://www.chess.com"]

[Event "Titled Tuesday Blitz December 27 Late 2022"]
[White "Forgacs, Attila Jr."]
[Black "Mekhitarian, Krikor Sevag"]
[WhiteFideId "773654"]
[BlackFideId "2107660"]
[WhiteElo "2264"]
[BlackElo "2537"]
[Result "0-1"]
[Round "01"]
[TimeControl "180+2"]
[Date "2022.12.27"]
[WhiteClock "0:00:04"]
[BlackClock "0:00:07"]

1. e4 {[%clk 0:02:58]}  c5 {[%clk 0:02:55]} 2. d3 {[%clk 0:02:58]}  Nc6 {[%clk 0:02:53]} 3. g3 {[%clk 0:02:59]}  g6 {[%clk 0:02:52]} 4. Bg2 {[%clk 0:02:59]}  Bg7 {[%clk 0:02:51]} 5. f4 {[%clk 0:03:00]}  e6 {[%clk 0:02:47]} 6. Nf3 {[%clk 0:03:00]}  Nge7 {[%clk 0:02:48]} 7. O-O {[%clk 0:03:00]}  O-O {[%clk 0:02:44]} 8. e5 {[%clk 0:02:57]}  d6 {[%clk 0:02:44]} 9. exd6 {[%clk 0:02:57]}  Nf5 {[%clk 0:02:44]} 10. Nc3 {[%clk 0:02:53]}  Qxd6 {[%clk 0:02:40]} 11. Ne4 {[%clk 0:02:52]}  Qe7 {[%clk 0:02:38]} 12. g4 {[%clk 0:02:37]}  Nfd4 {[%clk 0:02:37]} 13. c3 {[%clk 0:02:32]}  Nb5 {[%clk 0:02:10]} 14. Be3 {[%clk 0:02:20]}  b6 {[%clk 0:02:09]} 15. Qe1 {[%clk 0:02:01]}  Bb7 {[%clk 0:02:08]} 16. f5 {[%clk 0:01:57]}  exf5 {[%clk 0:01:41]} 17. gxf5 {[%clk 0:01:58]}  gxf5 {[%clk 0:01:33]} 18. Ng3 {[%clk 0:01:38]}  Nd6 {[%clk 0:01:33]} 19. Bf4 {[%clk 0:01:23]}  Qxe1 {[%clk 0:01:29]} 20. Raxe1 {[%clk 0:01:24]}  Rad8 {[%clk 0:01:29]} 21. Bxd6 {[%clk 0:01:22]}  Rxd6 {[%clk 0:01:30]} 22. Nxf5 {[%clk 0:01:23]}  Rxd3 {[%clk 0:01:12]} 23. Ng5 {[%clk 0:01:08]}  Bf6 {[%clk 0:00:57]} 24. Nh6+ {[%clk 0:00:47]}  Kg7 {[%clk 0:00:56]} 25. Nf5+ {[%clk 0:00:10]}  Kh8 {[%clk 0:00:55]} 26. Ne4 {[%clk 0:00:10]}  Be5 {[%clk 0:00:55]} 27. Ng5 {[%clk 0:00:08]}  f6 {[%clk 0:00:51]} 28. Ne6 {[%clk 0:00:07]}  Re8 {[%clk 0:00:50]} 29. Nf4 {[%clk 0:00:05]}  Rdd8 {[%clk 0:00:47]} 30. Nh5 {[%clk 0:00:05]}  Rg8 {[%clk 0:00:40]} 31. Kh1 {[%clk 0:00:05]}  Rxg2 {[%clk 0:00:39]} 32. Kxg2 {[%clk 0:00:05]}  Nd4+ {[%clk 0:00:40]} 33. Kh3 {[%clk 0:00:04]}  Nxf5 {[%clk 0:00:39]} 34. Rxf5 {[%clk 0:00:04]}  Bc8 {[%clk 0:00:39]} 35. Rf1 {[%clk 0:00:03]}  Rd2 {[%clk 0:00:35]} 36. Kh4 {[%clk 0:00:02]}  Rxh2+ {[%clk 0:00:34]} 37. Kg4 {[%clk 0:00:02]}  Rxb2 {[%clk 0:00:18]} 38. Nf4 {[%clk 0:00:02]}  Bxf5+ {[%clk 0:00:17]} 39. Kxf5 {[%clk 0:00:02]}  Bxf4 {[%clk 0:00:17]} 40. Rxf4 {[%clk 0:00:02]}  Kg7 {[%clk 0:00:16]} 41. Rg4+ {[%clk 0:00:02]}  Kf7 {[%clk 0:00:16]} 42. Rh4 {[%clk 0:00:02]}  Rf2+ {[%clk 0:00:17]} 43. Ke4 {[%clk 0:00:03]}  Rxa2 {[%clk 0:00:06]} 44. Rxh7+ {[%clk 0:00:03]}  Ke6 {[%clk 0:00:07]} 45. Rc7 {[%clk 0:00:03]}  Ra4+ {[%clk 0:00:07]} 46. Kd3 {[%clk 0:00:04]}  Kd6 {[%clk 0:00:07]} 47. Rf7 {[%clk 0:00:04]}  Ke5 {[%clk 0:00:08]} 48. Re7+ {[%clk 0:00:04]}  Kd5 {[%clk 0:00:08]} 49. Rf7 {[%clk 0:00:04]}  Ke6 {[%clk 0:00:08]} 50. Rc7 {[%clk 0:00:04]}  f5 {[%clk 0:00:08]} 51. Rc6+ {[%clk 0:00:04]}  Ke5 {[%clk 0:00:09]} 52. Rc8 {[%clk 0:00:05]}  f4 {[%clk 0:00:09]} 53. Re8+ {[%clk 0:00:06]}  Kd5 {[%clk 0:00:09]} 54. Rf8 {[%clk 0:00:06]}  Kc6 {[%clk 0:00:09]} 55. Rf6+ {[%clk 0:00:06]}  Kb5 {[%clk 0:00:10]} 56. Rf5 {[%clk 0:00:07]}  a5 {[%clk 0:00:10]} 57. Rf6 {[%clk 0:00:06]}  Rc4 {[%clk 0:00:09]} 58. Rf5 {[%clk 0:00:04]}  a4 {[%clk 0:00:10]} 59. Rf8 {[%clk 0:00:05]}  a3 {[%clk 0:00:10]} 60. Ra8 {[%clk 0:00:05]}  Ra4 {[%clk 0:00:10]} 61. Rf8 {[%clk 0:00:05]}  a2 {[%clk 0:00:10]} 62. c4+ {[%clk 0:00:05]}  Rxc4 {[%clk 0:00:08]} 63. Ra8 {[%clk 0:00:03]}  Ra4 {[%clk 0:00:08]} 64. Kc2 {[%clk 0:00:03]}  Rxa8 {[%clk 0:00:07]} 65. Kb3 {[%clk 0:00:03]}  a1=Q {[%clk 0:00:07]} 66. Kc2 {[%clk 0:00:03]}  Ra2+ {[%clk 0:00:07]} 67. Kb3 {[%clk 0:00:04]}  Qb2# {[%clk 0:00:07]} 0-1


[Site "https://www.chess.com"]

[Event "Titled Tuesday Blitz December 27 Late 2022"]
[White "Freile Martin, Javier"]
[Black "Kourkoulos-Arditis, Stamatis"]
[WhiteFideId "3600165"]
[BlackFideId "4221990"]
[WhiteElo "2329"]
[BlackElo "2539"]
[Result "1-0"]
[Round "01"]
[TimeControl "180+2"]
[Date "2022.12.27"]
[WhiteClock "0:00:09"]
[BlackClock "0:00:04"]

1. c4 {[%clk 0:02:57]}  Nf6 {[%clk 0:02:58]} 2. Nc3 {[%clk 0:02:56]}  c5 {[%clk 0:02:56]} 3. Nf3 {[%clk 0:02:53]}  Nc6 {[%clk 0:02:54]} 4. e3 {[%clk 0:02:52]}  e6 {[%clk 0:02:42]} 5. d4 {[%clk 0:02:45]}  d5 {[%clk 0:02:43]} 6. a3 {[%clk 0:02:41]}  a6 {[%clk 0:02:43]} 7. cxd5 {[%clk 0:02:39]}  exd5 {[%clk 0:02:44]} 8. Be2 {[%clk 0:02:37]}  c4 {[%clk 0:02:40]} 9. O-O {[%clk 0:02:34]}  b5 {[%clk 0:02:37]} 10. Ne5 {[%clk 0:02:34]}  Bb7 {[%clk 0:02:35]} 11. f4 {[%clk 0:02:34]}  Be7 {[%clk 0:02:35]} 12. Bd2 {[%clk 0:02:33]}  O-O {[%clk 0:02:33]} 13. Rf3 {[%clk 0:02:30]}  Ne4 {[%clk 0:02:01]} 14. Nxe4 {[%clk 0:02:26]}  dxe4 {[%clk 0:02:02]} 15. Rh3 {[%clk 0:02:23]}  f6 {[%clk 0:01:37]} 16. Nxc4 {[%clk 0:01:51]}  Nxd4 {[%clk 0:01:31]} 17. exd4 {[%clk 0:01:46]}  bxc4 {[%clk 0:01:30]} 18. Bxc4+ {[%clk 0:01:45]}  Bd5 {[%clk 0:01:30]} 19. Ba5 {[%clk 0:01:20]}  Qd7 {[%clk 0:01:02]} 20. b3 {[%clk 0:01:03]}  g6 {[%clk 0:00:54]} 21. Qe2 {[%clk 0:00:49]}  Kg7 {[%clk 0:00:52]} 22. Qe3 {[%clk 0:00:34]}  f5 {[%clk 0:00:51]} 23. Qc3 {[%clk 0:00:25]}  Rfc8 {[%clk 0:00:47]} 24. Rg3 {[%clk 0:00:21]}  Bf6 {[%clk 0:00:47]} 25. Rd1 {[%clk 0:00:19]}  Qd6 {[%clk 0:00:39]} 26. Bb4 {[%clk 0:00:18]}  Qxf4 {[%clk 0:00:37]} 27. Rf1 {[%clk 0:00:17]}  Qh4 {[%clk 0:00:22]} 28. Rxf5 {[%clk 0:00:16]}  Bxc4 {[%clk 0:00:20]} 29. bxc4 {[%clk 0:00:15]}  e3 {[%clk 0:00:20]} 30. Rxf6 {[%clk 0:00:15]}  Qxf6 {[%clk 0:00:18]} 31. Rxe3 {[%clk 0:00:15]}  Re8 {[%clk 0:00:18]} 32. Rf3 {[%clk 0:00:14]}  Qh4 {[%clk 0:00:12]} 33. g3 {[%clk 0:00:14]}  Qe4 {[%clk 0:00:11]} 34. d5+ {[%clk 0:00:14]}  Kg8 {[%clk 0:00:11]} 35. Kg2 {[%clk 0:00:14]}  Ra7 {[%clk 0:00:10]} 36. d6 {[%clk 0:00:13]}  Rf7 {[%clk 0:00:10]} 37. Qd3 {[%clk 0:00:10]}  Qe2+ {[%clk 0:00:08]} 38. Qxe2 {[%clk 0:00:10]}  Rxe2+ {[%clk 0:00:08]} 39. Kf1 {[%clk 0:00:09]}  Rxf3+ {[%clk 0:00:07]} 40. Kxe2 {[%clk 0:00:10]}  Rb3 {[%clk 0:00:05]} 41. c5 {[%clk 0:00:09]}  Kf7 {[%clk 0:00:04]} 42. c6 {[%clk 0:00:10]}  Ke6 {[%clk 0:00:04]} 43. d7 {[%clk 0:00:10]}  Rb2+ {[%clk 0:00:04]} 44. Kd3 {[%clk 0:00:09]}  Rb3+ {[%clk 0:00:04]} 45. Kc4 {[%clk 0:00:09]} 1-0


[Site "https://www.chess.com"]

[Event "Titled Tuesday Blitz December 27 Late 2022"]
[White "Gahan, M G"]
[Black "Foisor, Sabina-Francesca"]
[WhiteFideId "5027373"]
[BlackFideId "1212915"]
[WhiteElo "2247"]
[BlackElo "2185"]
[Result "1-0"]
[Round "01"]
[TimeControl "180+2"]
[Date "2022.12.27"]
[WhiteClock "0:01:13"]
[BlackClock "0:00:05"]

1. e4 {[%clk 0:02:57]}  c6 {[%clk 0:02:58]} 2. d4 {[%clk 0:02:56]}  d5 {[%clk 0:02:58]} 3. e5 {[%clk 0:02:55]}  Bf5 {[%clk 0:02:56]} 4. Be3 {[%clk 0:02:55]}  e6 {[%clk 0:02:55]} 5. c3 {[%clk 0:02:55]}  Ne7 {[%clk 0:02:51]} 6. g4 {[%clk 0:02:54]}  Be4 {[%clk 0:02:49]} 7. f3 {[%clk 0:02:54]}  Bg6 {[%clk 0:02:49]} 8. Ne2 {[%clk 0:02:51]}  h5 {[%clk 0:02:42]} 9. Nf4 {[%clk 0:02:51]}  hxg4 {[%clk 0:02:39]} 10. Nxg6 {[%clk 0:02:51]}  Nxg6 {[%clk 0:02:40]} 11. fxg4 {[%clk 0:02:51]}  Be7 {[%clk 0:02:21]} 12. Bd3 {[%clk 0:02:49]}  Bh4+ {[%clk 0:02:17]} 13. Ke2 {[%clk 0:02:48]}  Bg5 {[%clk 0:02:01]} 14. Bxg6 {[%clk 0:02:47]}  Bxe3 {[%clk 0:01:50]} 15. Bxf7+ {[%clk 0:02:40]}  Kxf7 {[%clk 0:01:51]} 16. Kxe3 {[%clk 0:02:37]}  Qg5+ {[%clk 0:01:50]} 17. Kf2 {[%clk 0:02:35]}  Nd7 {[%clk 0:01:33]} 18. Nd2 {[%clk 0:02:30]}  Raf8 {[%clk 0:01:24]} 19. Kg2 {[%clk 0:02:26]}  Ke7 {[%clk 0:01:19]} 20. Qe2 {[%clk 0:02:21]}  Rf4 {[%clk 0:01:09]} 21. h3 {[%clk 0:02:21]}  c5 {[%clk 0:00:55]} 22. Raf1 {[%clk 0:02:11]}  cxd4 {[%clk 0:00:49]} 23. cxd4 {[%clk 0:02:11]}  Rhf8 {[%clk 0:00:40]} 24. Rxf4 {[%clk 0:02:08]}  Qxf4 {[%clk 0:00:29]} 25. Nf3 {[%clk 0:02:07]}  Rc8 {[%clk 0:00:24]} 26. Rd1 {[%clk 0:02:00]}  a6 {[%clk 0:00:18]} 27. Qd2 {[%clk 0:01:59]}  Qxd2+ {[%clk 0:00:16]} 28. Rxd2 {[%clk 0:02:00]}  b5 {[%clk 0:00:15]} 29. b3 {[%clk 0:02:00]}  Rc1 {[%clk 0:00:14]} 30. Kg3 {[%clk 0:01:55]}  Nb8 {[%clk 0:00:14]} 31. Kf4 {[%clk 0:01:48]}  Nc6 {[%clk 0:00:15]} 32. Kg5 {[%clk 0:01:47]}  Rf1 {[%clk 0:00:15]} 33. Nh4 {[%clk 0:01:38]}  Kf7 {[%clk 0:00:15]} 34. Ng2 {[%clk 0:01:34]}  Rf3 {[%clk 0:00:14]} 35. Nf4 {[%clk 0:01:31]}  Ne7 {[%clk 0:00:11]} 36. Rc2 {[%clk 0:01:23]}  Rf1 {[%clk 0:00:11]} 37. Rc7 {[%clk 0:01:22]}  Ke8 {[%clk 0:00:06]} 38. Nxe6 {[%clk 0:01:21]}  Rh1 {[%clk 0:00:05]} 39. Nxg7+ {[%clk 0:01:20]}  Kd8 {[%clk 0:00:05]} 40. Ne6+ {[%clk 0:01:21]}  Ke8 {[%clk 0:00:05]} 41. h4 {[%clk 0:01:20]}  Rf1 {[%clk 0:00:03]} 42. Ra7 {[%clk 0:01:20]}  Rf7 {[%clk 0:00:04]} 43. Nc7+ {[%clk 0:01:13]}  Kd7 {[%clk 0:00:05]} 44. Nxd5+ {[%clk 0:01:13]}  Ke6 {[%clk 0:00:03]} 45. Rxe7+ {[%clk 0:01:13]}  Rxe7 {[%clk 0:00:04]} 46. Nxe7 {[%clk 0:01:13]}  Kxe7 {[%clk 0:00:05]} 47. d5 {[%clk 0:01:13]} 1-0


[Site "https://www.chess.com"]

[Event "Titled Tuesday Blitz December 27 Late 2022"]
[White "Gasanov, Eldar"]
[Black "Sreyas Payyappat"]
[WhiteFideId "14104466"]
[BlackFideId "46674969"]
[WhiteElo "2481"]
[BlackElo "2076"]
[Result "0-1"]
[Round "01"]
[TimeControl "180+2"]
[Date "2022.12.27"]
[WhiteClock "0:00:15"]
[BlackClock "0:00:10"]

1. d4 {[%clk 0:02:38]}  Nf6 {[%clk 0:02:59]} 2. Nf3 {[%clk 0:02:36]}  c5 {[%clk 0:02:59]} 3. d5 {[%clk 0:02:34]}  e6 {[%clk 0:03:00]} 4. c4 {[%clk 0:02:34]}  exd5 {[%clk 0:03:01]} 5. cxd5 {[%clk 0:02:35]}  d6 {[%clk 0:03:01]} 6. e4 {[%clk 0:02:36]}  g6 {[%clk 0:02:58]} 7. Bd3 {[%clk 0:02:36]}  Bg7 {[%clk 0:02:59]} 8. h3 {[%clk 0:02:37]}  O-O {[%clk 0:02:59]} 9. O-O {[%clk 0:02:38]}  c4 {[%clk 0:02:54]} 10. Bc2 {[%clk 0:02:36]}  b5 {[%clk 0:02:51]} 11. Re1 {[%clk 0:02:31]}  Nbd7 {[%clk 0:02:50]} 12. Nd4 {[%clk 0:02:30]}  Qb6 {[%clk 0:02:41]} 13. Be3 {[%clk 0:02:28]}  Nc5 {[%clk 0:02:41]} 14. a4 {[%clk 0:02:25]}  b4 {[%clk 0:02:39]} 15. a5 {[%clk 0:02:25]}  Qc7 {[%clk 0:02:34]} 16. Nd2 {[%clk 0:02:05]}  b3 {[%clk 0:02:16]} 17. Bb1 {[%clk 0:02:04]}  Ba6 {[%clk 0:02:17]} 18. Qc1 {[%clk 0:01:57]}  Rac8 {[%clk 0:02:06]} 19. Nc6 {[%clk 0:01:54]}  Bb5 {[%clk 0:01:51]} 20. Bxc5 {[%clk 0:01:46]}  dxc5 {[%clk 0:01:50]} 21. Nxc4 {[%clk 0:01:47]}  Bxc6 {[%clk 0:01:44]} 22. dxc6 {[%clk 0:01:48]}  Qxc6 {[%clk 0:01:45]} 23. e5 {[%clk 0:01:48]}  Nd5 {[%clk 0:01:39]} 24. Be4 {[%clk 0:01:49]}  Qe6 {[%clk 0:01:35]} 25. Nd6 {[%clk 0:01:44]}  Rc7 {[%clk 0:01:19]} 26. Nb5 {[%clk 0:01:41]}  Rb7 {[%clk 0:00:39]} 27. Qxc5 {[%clk 0:01:31]}  Rc8 {[%clk 0:00:33]} 28. Qxd5 {[%clk 0:01:23]}  Qxd5 {[%clk 0:00:32]} 29. Bxd5 {[%clk 0:01:24]}  Rxb5 {[%clk 0:00:33]} 30. Rad1 {[%clk 0:01:24]}  Kf8 {[%clk 0:00:30]} 31. e6 {[%clk 0:01:21]}  fxe6 {[%clk 0:00:27]} 32. Bxe6 {[%clk 0:01:22]}  Re8 {[%clk 0:00:21]} 33. Rd7 {[%clk 0:01:21]}  Rf5 {[%clk 0:00:17]} 34. Rxa7 {[%clk 0:01:00]}  Bxb2 {[%clk 0:00:16]} 35. Rc7 {[%clk 0:00:56]}  Rf6 {[%clk 0:00:12]} 36. a6 {[%clk 0:00:55]}  Bd4 {[%clk 0:00:11]} 37. Rd1 {[%clk 0:00:28]}  Bxf2+ {[%clk 0:00:08]} 38. Kh2 {[%clk 0:00:29]}  Rfxe6 {[%clk 0:00:06]} 39. a7 {[%clk 0:00:29]}  Ra6 {[%clk 0:00:04]} 40. Rf1 {[%clk 0:00:30]}  Rf6 {[%clk 0:00:02]} 41. Rb7 {[%clk 0:00:28]}  Bg3+ {[%clk 0:00:03]} 42. Kg1 {[%clk 0:00:25]}  Rxf1+ {[%clk 0:00:03]} 43. Kxf1 {[%clk 0:00:24]}  Ra8 {[%clk 0:00:04]} 44. Rxb3 {[%clk 0:00:22]}  Be5 {[%clk 0:00:04]} 45. Rb5 {[%clk 0:00:22]}  Bd6 {[%clk 0:00:04]} 46. Rb6 {[%clk 0:00:21]}  Ke7 {[%clk 0:00:04]} 47. Rb7+ {[%clk 0:00:22]}  Ke6 {[%clk 0:00:04]} 48. Rxh7 {[%clk 0:00:23]}  Be5 {[%clk 0:00:02]} 49. Ke2 {[%clk 0:00:22]}  Bd4 {[%clk 0:00:02]} 50. Kd3 {[%clk 0:00:23]}  Bxa7 {[%clk 0:00:02]} 51. Ke4 {[%clk 0:00:22]}  Kf6 {[%clk 0:00:03]} 52. h4 {[%clk 0:00:21]}  Bb6 {[%clk 0:00:03]} 53. g4 {[%clk 0:00:22]}  Ra4+ {[%clk 0:00:04]} 54. Kf3 {[%clk 0:00:22]}  Ra3+ {[%clk 0:00:04]} 55. Ke4 {[%clk 0:00:23]}  Ra4+ {[%clk 0:00:04]} 56. Kf3 {[%clk 0:00:23]}  Bc5 {[%clk 0:00:05]} 57. h5 {[%clk 0:00:22]}  g5 {[%clk 0:00:05]} 58. Rh8 {[%clk 0:00:21]}  Rf4+ {[%clk 0:00:06]} 59. Kg3 {[%clk 0:00:21]}  Kg7 {[%clk 0:00:06]} 60. Re8 {[%clk 0:00:21]}  Bd6 {[%clk 0:00:06]} 61. Kh3 {[%clk 0:00:18]}  Rf3+ {[%clk 0:00:07]} 62. Kg2 {[%clk 0:00:18]}  Rg3+ {[%clk 0:00:07]} 63. Kf2 {[%clk 0:00:19]}  Rxg4 {[%clk 0:00:08]} 64. Re6 {[%clk 0:00:20]}  Rf4+ {[%clk 0:00:09]} 65. Ke2 {[%clk 0:00:19]}  Rf6 {[%clk 0:00:10]} 66. h6+ {[%clk 0:00:16]}  Kf7 {[%clk 0:00:10]} 67. h7 {[%clk 0:00:15]}  Rxe6+ {[%clk 0:00:09]} 68. Kf3 {[%clk 0:00:15]}  Rh6 {[%clk 0:00:10]} 0-1


[Site "https://www.chess.com"]

[Event "Titled Tuesday Blitz December 27 Late 2022"]
[White "Gerbelli Neto, Eduardo"]
[Black "Tsvetkov, Andrey"]
[WhiteFideId "2103281"]
[BlackFideId "34139360"]
[WhiteElo "2114"]
[BlackElo "2408"]
[Result "1-0"]
[Round "01"]
[TimeControl "180+2"]
[Date "2022.12.27"]
[WhiteClock "0:00:29"]
[BlackClock "0:00:04"]

1. e4 {[%clk 0:02:58]}  c5 {[%clk 0:02:59]} 2. Nc3 {[%clk 0:02:57]}  d6 {[%clk 0:02:59]} 3. f4 {[%clk 0:02:56]}  Nc6 {[%clk 0:02:58]} 4. Nf3 {[%clk 0:02:56]}  g6 {[%clk 0:02:54]} 5. Bb5 {[%clk 0:02:54]}  Bd7 {[%clk 0:02:53]} 6. O-O {[%clk 0:02:53]}  Bg7 {[%clk 0:02:52]} 7. d3 {[%clk 0:02:54]}  Nd4 {[%clk 0:02:51]} 8. Nxd4 {[%clk 0:02:47]}  cxd4 {[%clk 0:02:41]} 9. Bxd7+ {[%clk 0:02:48]}  Qxd7 {[%clk 0:02:41]} 10. Ne2 {[%clk 0:02:46]}  Rc8 {[%clk 0:02:41]} 11. Bd2 {[%clk 0:02:45]}  Nf6 {[%clk 0:02:37]} 12. c3 {[%clk 0:02:42]}  dxc3 {[%clk 0:02:32]} 13. Bxc3 {[%clk 0:02:41]}  O-O {[%clk 0:02:29]} 14. Ng3 {[%clk 0:02:39]}  b5 {[%clk 0:02:13]} 15. a3 {[%clk 0:02:36]}  Qb7 {[%clk 0:02:07]} 16. Qd2 {[%clk 0:02:19]}  Rfd8 {[%clk 0:01:58]} 17. f5 {[%clk 0:02:18]}  d5 {[%clk 0:01:50]} 18. fxg6 {[%clk 0:02:17]}  hxg6 {[%clk 0:01:48]} 19. e5 {[%clk 0:02:10]}  d4 {[%clk 0:01:49]} 20. Ba5 {[%clk 0:01:59]}  Ng4 {[%clk 0:01:31]} 21. Bxd8 {[%clk 0:01:53]}  Ne3 {[%clk 0:01:31]} 22. Qf2 {[%clk 0:01:14]}  Rxd8 {[%clk 0:00:58]} 23. Qxf7+ {[%clk 0:01:13]}  Kh8 {[%clk 0:00:59]} 24. Ne4 {[%clk 0:01:05]}  Nxf1 {[%clk 0:00:30]} 25. Rxf1 {[%clk 0:01:04]}  Qc6 {[%clk 0:00:29]} 26. e6 {[%clk 0:00:56]}  Rf8 {[%clk 0:00:21]} 27. Qxg6 {[%clk 0:00:52]}  Rxf1+ {[%clk 0:00:20]} 28. Kxf1 {[%clk 0:00:53]}  Qc1+ {[%clk 0:00:20]} 29. Kf2 {[%clk 0:00:43]}  Qe3+ {[%clk 0:00:19]} 30. Kf1 {[%clk 0:00:43]}  Qxd3+ {[%clk 0:00:19]} 31. Kf2 {[%clk 0:00:39]}  Qe3+ {[%clk 0:00:18]} 32. Kf1 {[%clk 0:00:39]}  Qd3+ {[%clk 0:00:05]} 33. Kf2 {[%clk 0:00:39]}  Qe3+ {[%clk 0:00:05]} 34. Kf1 {[%clk 0:00:39]}  Qc1+ {[%clk 0:00:03]} 35. Kf2 {[%clk 0:00:38]}  Qxb2+ {[%clk 0:00:04]} 36. Kg3 {[%clk 0:00:36]}  Qxa3+ {[%clk 0:00:04]} 37. Kg4 {[%clk 0:00:35]}  Qc1 {[%clk 0:00:04]} 38. Qe8+ {[%clk 0:00:28]}  Kh7 {[%clk 0:00:04]} 39. Ng5+ {[%clk 0:00:29]} 1-0


[Site "https://www.chess.com"]

[Event "Titled Tuesday Blitz December 27 Late 2022"]
[White "Gubajdullin, Alexei"]
[Black "Huber, Benedikt"]
[WhiteFideId "4141202"]
[BlackFideId "12923583"]
[WhiteElo "2285"]
[BlackElo "2272"]
[Result "0-1"]
[Round "01"]
[TimeControl "180+2"]
[Date "2022.12.27"]
[WhiteClock "0:00:01"]
[BlackClock "0:00:08"]

1. d4 {[%clk 0:02:58]}  e6 {[%clk 0:02:51]} 2. Nf3 {[%clk 0:02:58]}  f5 {[%clk 0:02:50]} 3. Nc3 {[%clk 0:02:52]}  Nf6 {[%clk 0:02:49]} 4. Bg5 {[%clk 0:02:51]}  d5 {[%clk 0:02:47]} 5. a3 {[%clk 0:02:48]}  Nbd7 {[%clk 0:02:45]} 6. e3 {[%clk 0:02:48]}  h6 {[%clk 0:02:45]} 7. Bxf6 {[%clk 0:02:47]}  Nxf6 {[%clk 0:02:46]} 8. Ne5 {[%clk 0:02:47]}  Bd6 {[%clk 0:02:44]} 9. Ng6 {[%clk 0:02:46]}  Rg8 {[%clk 0:02:42]} 10. h4 {[%clk 0:02:43]}  Ng4 {[%clk 0:02:30]} 11. h5 {[%clk 0:02:40]}  Qg5 {[%clk 0:02:26]} 12. Qf3 {[%clk 0:02:29]}  Bd7 {[%clk 0:02:20]} 13. Nb5 {[%clk 0:02:20]}  Bxb5 {[%clk 0:02:11]} 14. Bxb5+ {[%clk 0:02:19]}  c6 {[%clk 0:02:12]} 15. Bd3 {[%clk 0:02:18]}  O-O-O {[%clk 0:02:12]} 16. c4 {[%clk 0:02:17]}  Rge8 {[%clk 0:02:01]} 17. cxd5 {[%clk 0:02:12]}  cxd5 {[%clk 0:02:02]} 18. O-O-O {[%clk 0:02:11]}  Kb8 {[%clk 0:02:03]} 19. Kb1 {[%clk 0:02:11]}  Rc8 {[%clk 0:02:00]} 20. g3 {[%clk 0:02:11]}  Rc7 {[%clk 0:01:50]} 21. Nf4 {[%clk 0:02:06]}  Bxf4 {[%clk 0:01:34]} 22. Qxf4 {[%clk 0:02:06]}  Qxf4 {[%clk 0:01:33]} 23. gxf4 {[%clk 0:02:02]}  Nxf2 {[%clk 0:01:34]} 24. Rdg1 {[%clk 0:01:57]}  Nxd3 {[%clk 0:01:27]} 25. Rg2 {[%clk 0:01:56]}  Rec8 {[%clk 0:01:25]} 26. Ka2 {[%clk 0:01:34]}  Rc1 {[%clk 0:01:20]} 27. Rhh2 {[%clk 0:01:30]}  R8c7 {[%clk 0:01:15]} 28. Rg6 {[%clk 0:01:28]}  Re1 {[%clk 0:01:12]} 29. Rhg2 {[%clk 0:01:20]}  a5 {[%clk 0:01:03]} 30. a4 {[%clk 0:01:05]}  Nb4+ {[%clk 0:01:01]} 31. Ka3 {[%clk 0:01:01]}  Rxe3+ {[%clk 0:00:56]} 32. b3 {[%clk 0:01:01]}  Re1 {[%clk 0:00:54]} 33. Rxg7 {[%clk 0:00:55]}  Rcc1 {[%clk 0:00:45]} 34. Kb2 {[%clk 0:00:42]}  Rb1+ {[%clk 0:00:43]} 35. Kc3 {[%clk 0:00:42]}  Re3+ {[%clk 0:00:41]} 36. Kd2 {[%clk 0:00:40]}  Rd3+ {[%clk 0:00:41]} 37. Ke2 {[%clk 0:00:40]}  Rb2+ {[%clk 0:00:41]} 38. Ke1 {[%clk 0:00:40]}  Rb1+ {[%clk 0:00:35]} 39. Ke2 {[%clk 0:00:39]}  Rdxb3 {[%clk 0:00:36]} 40. Kf2 {[%clk 0:00:33]}  Rc3 {[%clk 0:00:32]} 41. R7g6 {[%clk 0:00:23]}  Nd3+ {[%clk 0:00:31]} 42. Ke3 {[%clk 0:00:21]}  Nxf4+ {[%clk 0:00:32]} 43. Kxf4 {[%clk 0:00:21]}  Rf1+ {[%clk 0:00:30]} 44. Ke5 {[%clk 0:00:21]}  Re3+ {[%clk 0:00:30]} 45. Kd6 {[%clk 0:00:21]}  f4 {[%clk 0:00:29]} 46. Rb2 {[%clk 0:00:20]}  Rc1 {[%clk 0:00:17]} 47. Rg8+ {[%clk 0:00:20]}  Ka7 {[%clk 0:00:16]} 48. Rg7 {[%clk 0:00:19]}  Rc6+ {[%clk 0:00:16]} 49. Kd7 {[%clk 0:00:19]}  Rb6 {[%clk 0:00:17]} 50. Rc2 {[%clk 0:00:18]}  Rh3 {[%clk 0:00:16]} 51. Rg8 {[%clk 0:00:17]}  Rxh5 {[%clk 0:00:14]} 52. Rcc8 {[%clk 0:00:16]}  Rb4 {[%clk 0:00:12]} 53. Rc5 {[%clk 0:00:08]}  Kb6 {[%clk 0:00:12]} 54. Rb8 {[%clk 0:00:07]}  Rf5 {[%clk 0:00:11]} 55. Kxe6 {[%clk 0:00:05]}  Rg5 {[%clk 0:00:08]} 56. Rc1 {[%clk 0:00:03]}  Rxd4 {[%clk 0:00:08]} 57. Rb1+ {[%clk 0:00:02]}  Rb4 {[%clk 0:00:08]} 58. Rc1 {[%clk 0:00:01]}  d4 {[%clk 0:00:08]} 0-1


[Site "https://www.chess.com"]